[Event "Liberia Championship 2023"]
[Site "Monrovia"]
[Date "2024.01.16"]
[Round "3.9"]
[White "Kennedy Zinnah Kengo"]
[Black "Rudolph Edwards"]
[Result "1-0"]
[ECO "C50"]
[WhiteElo "1789"]
[BlackElo "1630"]
[Annotator "NA COMBH"]
[PlyCount "93"]
[EventDate "2024.01.16"]
[EventType "swiss"]
[EventCountry "LBR"]
[SourceTitle "playchess.com"]
[Source "ChessBase"]
[SourceQuality "1"]
[TimeControl "40/5400+30:1800+30"]

1. e4 {[%emt 0:00:07]} e5 {[%emt 0:01:50]} 2. Nf3 {[%emt 0:01:16]} Nc6 {[%emt 0:00:34]} 3. Bc4 {[%emt 0:00:45]} h6 {[%emt 0:00:31]} 4. O-O {[%emt 0:00:55]} Nf6 {[%emt 0:00:22]} 5. Re1 {[%emt 0:01:04]} Bc5 {[%emt 0:00:03]} 6. c3 {[%emt 0:00:18]} Bb6 {[%emt 0:05:06]} 7. d4 {[%emt 0:03:42]} d6 {[%emt 0:01:03]} 8. a4 {[%emt 0:01:12]} a5 {[%emt 0:00:32]} 9. h3 {[%emt 0:01:15]} O-O {[%emt 0:00:02]} 10. Na3 {[%emt 0:00:28]} Re8 {[%emt 0:00:46]} 11. Qb3 {[%emt 0:00:58]} Qd7 {[%emt 0:02:11]} 12. d5 {[%emt 0:00:20]} Na7 {[%emt 0:02:02]} 13. Nh4 {[%emt 0:01:05]} Qe7 {[%emt 0:00:24]} 14. Qd1 {[%emt 0:01:30]} c6 {[%emt 0:00:35]} 15. dxc6 {[%emt 0:00:34]} bxc6 {[%emt 0:00:46]} 16. Be3 {[%emt 0:01:17]} Bxe3 {[%emt 0:00:50]} 17. Rxe3 {[%emt 0:00:24]} d5 {[%emt 0:00:13]} 18. exd5 {[%emt 0:00:32]} cxd5 {[%emt 0:00:25]} 19. Bf1 {[%emt 0:00:08]} Rb8 {[%emt 0:08:06]} 20. Nb5 {[%emt 0:04:18]} Nc6 {[%emt 1:14:09]} 21. Nf3 {[%emt 0:00:29]} Bf5 {[%emt 0:00:00]} 22. Nfd4 {[%emt 0:02:14]} Qd7 {[%emt 0:00:00]} 23. Nxc6 {[%emt 0:00:40]} Qxc6 {[%emt 0:00:00]} 24. Qe2 {[%emt 0:00:21]} Nd7 {[%emt 0:00:00]} 25. Qd2 {[%emt 0:01:52]} Rbd8 {[%emt 0:00:00]} 26. b4 {[%emt 0:01:05]} axb4 {[%emt 0:00:00]} 27. cxb4 {[%emt 0:00:09]} Nb6 {[%emt 0:00:00]} 28. a5 {[%emt 0:00:59]} Nc4 {[%emt 0:00:00]} 29. Nd4 {[%emt 0:02:52]} exd4 {[%emt 0:00:00]} 30. Rxe8+ {[%emt 0:00:11]} Rxe8 {[%emt 0:00:00]} 31. Qxd4 {[%emt 0:00:20]} Rb8 {[%emt 0:00:00]} 32. a6 {[%emt 0:00:33]} Ra8 {[%emt 0:00:00]} 33. a7 {[%emt 0:00:18]} Be6 {[%emt 0:00:00]} 34. Ra2 {[%emt 0:03:46]} Qb7 {[%emt 0:00:00]} 35. Qc5 {[%emt 1:10:03]} Bd7 {[%emt 0:00:00]} 36. Be2 {[%emt 0:00:00]} Bc6 {[%emt 0:00:00]} 37. g3 {[%emt 0:00:00]} Bd7 {[%emt 0:00:00]} 38. Bf3 {[%emt 0:00:00]} Bc6 {[%emt 0:00:00]} 39. b5 {[%emt 0:00:00]} Ne5 {[%emt 0:00:00]} 40. bxc6 {[%emt 0:00:00]} Qb1+ {[%emt 0:00:00]} 41. Kg2 {[%emt 0:00:00]} Qxa2 {[%emt 0:20:50]} 42. c7 {[%emt 0:00:00]} Nd3 {[%emt 0:13:14]} 43. c8=Q+ {[%emt 0:00:00]} Rxc8 {[%emt 0:02:22]} 44. Qxc8+ {[%emt 0:00:00]} Kh7 {[%emt 0:00:34]} 45. Qf5+ {[%emt 0:00:00]} g6 {[%emt 0:00:57]} 46. Qxf7+ {[%emt 0:00:00]} Kh8 {[%emt 0:00:45]} 47. Bxd5 {[%emt 0:00:00]} 1-0

[Event "Liberia Championship 2023"]
[Site "Monrovia"]
[Date "2024.01.17"]
[Round "4.1"]
[White "Arnold Smith"]
[Black "David Leroy Debblay"]
[Result "1-0"]
[ECO "C43"]
[WhiteElo "1844"]
[BlackElo "1791"]
[Annotator "NA RC"]
[PlyCount "163"]
[EventDate "2024.01.16"]
[EventType "swiss"]
[EventCountry "LBR"]
[SourceTitle "playchess.com"]
[Source "ChessBase"]
[SourceQuality "1"]
[TimeControl "40/5400+30:1800+30"]

1. e4 {[%emt 0:00:02]} e5 {[%emt 0:00:08]} 2. Nf3 {[%emt 0:00:13]} Nf6 {[%emt 0:00:07]} 3. d4 {[%emt 0:02:25]} Nxe4 {[%emt 0:00:51]} 4. Bd3 {[%emt 0:00:37]} d5 {[%emt 0:00:11]} 5. Nxe5 {[%emt 0:01:30]} Bd6 {[%emt 0:00:31]} 6. O-O {[%emt 0:00:28]} O-O {[%emt 0:00:08]} 7. c4 {[%emt 0:01:00]} c6 {[%emt 0:01:09]} 8. Nc3 {[%emt 0:01:29]} Nxc3 {[%emt 0:05:42]} 9. bxc3 {[%emt 0:00:09]} Be6 {[%emt 0:04:34]} 10. cxd5 {[%emt 0:08:23]} Bxd5 {[%emt 0:00:14]} 11. Nc4 {[%emt 0:05:38]} Bc7 {[%emt 0:00:55]} 12. Ne3 {[%emt 0:00:47]} Be6 {[%emt 0:05:42]} 13. Qc2 {[%emt 0:01:28]} h6 {[%emt 0:00:41]} 14. Nf5 {[%emt 0:01:54]} Nd7 {[%emt 0:04:17]} 15. Ba3 {[%emt 0:00:58]} Re8 {[%emt 0:01:54]} 16. Nd6 {[%emt 0:04:32]} Bxd6 {[%emt 0:00:16]} 17. Bxd6 {[%emt 0:00:06]} Nf6 {[%emt 0:00:06]} 18. Be5 {[%emt 0:00:26]} Ng4 {[%emt 0:02:54]} 19. Bg3 {[%emt 0:00:18]} h5 {[%emt 0:00:59]} 20. Rfe1 {[%emt 0:02:00]} h4 {[%emt 0:01:54]} 21. Bf4 {[%emt 0:00:20]} g5 {[%emt 0:08:55]} 22. Be5 {[%emt 0:06:03]} f6 {[%emt 0:07:34]} 23. h3 {[%emt 0:00:20]} fxe5 {[%emt 0:01:30]} 24. hxg4 {[%emt 0:00:16]} exd4 {[%emt 0:04:04]} 25. Rxe6 {[%emt 0:02:17]} Rxe6 {[%emt 0:05:06]} 26. Bc4 {[%emt 0:00:05]} Qf6 {[%emt 0:00:12]} 27. Re1 {[%emt 0:00:43]} Rae8 {[%emt 0:00:11]} 28. Qb3 {[%emt 0:00:19]} Kf7 {[%emt 0:01:09]} 29. Qxb7+ {[%emt 0:00:26]} Kf8 {[%emt 0:02:15]} 30. Qb4+ {[%emt 0:01:15]} Rd6 {[%emt 0:00:08]} 31. Rxe8+ {[%emt 0:02:38]} Kxe8 {[%emt 0:00:14]} 32. cxd4 {[%emt 0:01:16]} Qxd4 {[%emt 0:00:26]} 33. Qb8+ {[%emt 0:00:49]} Rd8 {[%emt 0:00:27]} 34. Qb4 {[%emt 0:00:29]} Qd1+ {[%emt 0:01:08]} 35. Bf1 {[%emt 0:00:19]} Qd4 {[%emt 0:00:06]} 36. Qb7 {[%emt 0:01:52]} Qd7 {[%emt 0:00:52]} 37. Qa6 {[%emt 0:00:12]} Rb8 {[%emt 0:00:51]} 38. Qe2+ {[%emt 0:00:49]} Qe7 {[%emt 0:00:49]} 39. Qc2 {[%emt 0:00:16]} Kd7 {[%emt 0:00:53]} 40. Qf5+ {[%emt 0:00:00]} Kd6 {[%emt 0:00:00]} 41. Qd3+ {[%emt 0:02:30]} Kc7 {[%emt 0:02:03]} 42. Qa6 {[%emt 0:03:42]} Qc5 {[%emt 0:00:55]} 43. Qd3 {[%emt 0:00:54]} Rb2 {[%emt 0:00:53]} 44. Qh7+ {[%emt 0:00:50]} Kb6 {[%emt 0:00:34]} 45. Qf7 {[%emt 0:00:57]} Rb4 {[%emt 0:01:35]} 46. Qe8 {[%emt 0:02:13]} Rd4 {[%emt 0:03:41]} 47. Qe2 {[%emt 0:01:08]} a5 {[%emt 0:01:05]} 48. Qb2+ {[%emt 0:01:05]} Kc7 {[%emt 0:00:59]} 49. Qe2 {[%emt 0:00:47]} Rf4 {[%emt 0:00:38]} 50. Qb2 {[%emt 0:02:08]} Qd4 {[%emt 0:00:55]} 51. Qc2 {[%emt 0:05:51]} Rxg4 {[%emt 0:00:49]} 52. Qh7+ {[%emt 0:00:44]} Kb6 {[%emt 0:00:39]} 53. Qb1+ {[%emt 0:00:45]} Qb4 {[%emt 0:00:46]} 54. Qf5 {[%emt 0:00:55]} h3 {[%emt 0:01:00]} 55. g3 {[%emt 0:01:11]} Qe4 {[%emt 0:08:30]} 56. Qc8 {[%emt 0:00:45]} Kc5 {[%emt 0:01:13]} 57. Bxh3 {[%emt 0:01:55]} Qe1+ {[%emt 0:02:43]} 58. Bf1 {[%emt 0:01:15]} Rd4 {[%emt 0:00:43]} 59. Qf8+ {[%emt 0:01:01]} Rd6 {[%emt 0:00:58]} 60. Qf5+ {[%emt 0:02:33]} Rd5 {[%emt 0:01:37]} 61. Qf8+ {[%emt 0:01:10]} Rd6 {[%emt 0:02:03]} 62. Qf5+ {[%emt 0:00:44]} Kb6 {[%emt 0:00:32]} 63. Qf7 {[%emt 0:02:32]} Qc3 {[%emt 0:01:57]} 64. Qg8 {[%emt 0:01:44]} Qd2 {[%emt 0:00:58]} 65. Qc4 {[%emt 0:00:48]} Qd5 {[%emt 0:04:34]} 66. Qa6+ {[%emt 0:01:33]} Kc7 {[%emt 0:00:48]} 67. Qa7+ {[%emt 0:02:28]} Kd8 {[%emt 0:00:41]} 68. Qb8+ {[%emt 0:01:48]} Ke7 {[%emt 0:00:39]} 69. Qb2 {[%emt 0:01:12]} c5 {[%emt 0:00:45]} 70. Qg7+ {[%emt 0:00:47]} Kd8 {[%emt 0:01:10]} 71. Bg2 {[%emt 0:02:41]} Qd1+ {[%emt 0:01:41]} 72. Bf1 {[%emt 0:00:47]} g4 {[%emt 0:01:22]} 73. Qf8+ {[%emt 0:00:59]} Kc7 {[%emt 0:00:35]} 74. Qe7+ {[%emt 0:00:52]} Kb6 {[%emt 0:02:04]} 75. Qe8 {[%emt 0:00:46]} c4 {[%emt 0:03:18]} 76. Qb8+ {[%emt 0:02:00]} Kc5 {[%emt 0:01:12]} 77. Qc7+ {[%emt 0:00:46]} Rc6 {[%emt 0:00:50]} 78. Qxa5+ {[%emt 0:00:46]} Kd4 {[%emt 0:01:53]} 79. Qd8+ {[%emt 0:00:46]} Kc3 {[%emt 0:01:32]} 80. Qxd1 {[%emt 0:00:34]} Kb4 {[%emt 0:00:50]} 81. Qxg4 {[%emt 0:00:51]} Rc5 {[%emt 0:00:45]} 82. Qxc4+ {[%emt 0:00:42]} 1-0

[Event "Liberia Championship 2023"]
[Site "Monrovia"]
[Date "2024.01.17"]
[Round "4.2"]
[White "Barcon, Harmon"]
[Black "Obediah Saah"]
[Result "1-0"]
[ECO "C65"]
[WhiteElo "1902"]
[BlackElo "1756"]
[Annotator "NA RC"]
[PlyCount "149"]
[EventDate "2024.01.16"]
[EventType "swiss"]
[EventCountry "LBR"]
[SourceTitle "playchess.com"]
[Source "ChessBase"]
[SourceQuality "1"]
[TimeControl "40/5400+30:1800+30"]

1. e4 {[%emt 0:00:04]} e5 {[%emt 0:01:41]} 2. Nf3 {[%emt 0:00:10]} Nc6 {[%emt 0:00:34]} 3. Bb5 {[%emt 0:00:03]} Nf6 {[%emt 0:01:06]} 4. d3 {[%emt 0:01:03]} Bc5 {[%emt 0:03:00]} 5. O-O {[%emt 0:00:20]} d6 {[%emt 0:01:08]} 6. h3 {[%emt 0:00:16]} O-O {[%emt 0:00:19]} 7. c3 {[%emt 0:00:09]} a6 {[%emt 0:01:10]} 8. Ba4 {[%emt 0:00:12]} Ba7 {[%emt 0:00:37]} 9. Re1 {[%emt 0:00:28]} Ne7 {[%emt 0:01:55]} 10. Nbd2 {[%emt 0:00:51]} Ng6 {[%emt 0:00:17]} 11. Nf1 {[%emt 0:00:06]} Bd7 {[%emt 0:01:21]} 12. Bb3 {[%emt 0:00:18]} h6 {[%emt 0:00:53]} 13. Ng3 {[%emt 0:00:50]} Re8 {[%emt 0:00:52]} 14. Be3 {[%emt 0:03:03]} Bxe3 {[%emt 0:01:29]} 15. fxe3 {[%emt 0:00:06]} Be6 {[%emt 0:03:11]} 16. Bc2 {[%emt 0:01:21]} c5 {[%emt 0:02:51]} 17. Nf5 {[%emt 0:00:53]} d5 {[%emt 0:03:10]} 18. Qe2 {[%emt 0:00:04]} dxe4 {[%emt 0:00:56]} 19. dxe4 {[%emt 0:00:02]} Qc7 {[%emt 0:01:22]} 20. c4 {[%emt 0:05:03]} Rad8 {[%emt 0:02:26]} 21. Rad1 {[%emt 0:01:23]} Kf8 {[%emt 0:02:02]} 22. b3 {[%emt 0:00:38]} Qc6 {[%emt 0:01:45]} 23. Ng3 {[%emt 0:00:57]} Qc7 {[%emt 0:03:37]} 24. Nd2 {[%emt 0:01:55]} Qa5 {[%emt 0:02:37]} 25. a4 {[%emt 0:00:19]} Rd7 {[%emt 0:00:40]} 26. Nb1 {[%emt 0:02:20]} Red8 {[%emt 0:00:30]} 27. Rxd7 {[%emt 0:00:07]} Rxd7 {[%emt 0:00:19]} 28. Rd1 {[%emt 0:00:07]} Ke7 {[%emt 0:04:46]} 29. Rxd7+ {[%emt 0:05:28]} Bxd7 {[%emt 0:00:46]} 30. Qd1 {[%emt 0:00:46]} Nf8 {[%emt 0:03:05]} 31. Ne2 {[%emt 0:00:42]} Ne6 {[%emt 0:01:41]} 32. Nbc3 {[%emt 0:00:12]} Nc7 {[%emt 0:02:38]} 33. Qd2 {[%emt 0:02:55]} Qb4 {[%emt 0:01:34]} 34. Nc1 {[%emt 0:02:56]} Qb6 {[%emt 0:02:18]} 35. Nd5+ {[%emt 0:01:04]} Ncxd5 {[%emt 0:00:22]} 36. exd5 {[%emt 0:00:17]} e4 {[%emt 0:02:23]} 37. Ne2 {[%emt 0:00:29]} Qd6 {[%emt 0:01:41]} 38. Qc3 {[%emt 0:01:57]} b5 {[%emt 0:01:55]} 39. axb5 {[%emt 0:01:34]} axb5 {[%emt 0:00:16]} 40. Kf2 {[%emt 0:00:00]} b4 {[%emt 0:00:00]} 41. Qa1 {[%emt 0:01:36]} Bf5 {[%emt 0:03:39]} 42. Ng3 {[%emt 0:03:27]} Bh7 {[%emt 0:03:13]} 43. Bd1 {[%emt 0:04:54]} Ne8 {[%emt 0:03:47]} 44. Bg4 {[%emt 0:01:31]} Qf6+ {[%emt 0:01:27]} 45. Qxf6+ {[%emt 0:00:32]} Nxf6 {[%emt 0:05:01]} 46. Bf5 {[%emt 0:01:18]} Bg6 {[%emt 0:01:28]} 47. Bxg6 {[%emt 0:02:01]} fxg6 {[%emt 0:00:48]} 48. Nf1 {[%emt 0:03:16]} g5 {[%emt 0:02:24]} 49. Kg3 {[%emt 0:03:53]} Kd6 {[%emt 0:02:18]} 50. h4 {[%emt 0:05:28]} gxh4+ {[%emt 0:02:37]} 51. Kf4 {[%emt 0:02:59]} g6 {[%emt 0:11:02]} 52. Nd2 {[%emt 0:03:41]} Nh5+ {[%emt 0:01:32]} 53. Kxe4 Ng3+ {[%emt 0:03:05]} 54. Kf4 {[%emt 0:06:38]} g5+ {[%emt 0:02:01]} 55. Kg4 {[%emt 0:01:21]} Ke5 {[%emt 0:01:44]} 56. e4 {[%emt 0:02:17]} Kf6 {[%emt 0:07:46]} 57. d6 {[%emt 0:04:54]} h5+ {[%emt 0:00:51]} 58. Kf3 {[%emt 0:00:31]} Ke6 {[%emt 0:01:41]} 59. e5 {[%emt 0:01:00]} Nf5 60. Ke4 {[%emt 0:57:45]} Nd4 {[%emt 0:03:35]} 61. Nf3 {[%emt 0:00:00]} Nxb3 {[%emt 0:05:40]} 62. Nxg5+ {[%emt 0:00:00]} Kd7 {[%emt 0:00:58]} 63. Kd5 {[%emt 0:00:00]} Nd4 {[%emt 0:04:48]} 64. e6+ {[%emt 0:00:00]} Kc8 {[%emt 0:02:24]} 65. d7+ {[%emt 0:00:00]} Kc7 {[%emt 0:00:58]} 66. Ne4 {[%emt 0:00:00]} b3 {[%emt 0:02:02]} 67. Nxc5 {[%emt 0:00:00]} Nf5 {[%emt 0:01:03]} 68. Nxb3 {[%emt 0:00:00]} Ne3+ {[%emt 0:01:16]} 69. Ke5 {[%emt 0:00:00]} Nxg2 {[%emt 0:00:52]} 70. Nc5 {[%emt 0:00:00]} Ne3 {[%emt 0:02:44]} 71. e7 {[%emt 0:00:00]} Nxc4+ {[%emt 0:01:57]} 72. Kf4 {[%emt 0:00:00]} Kc6 {[%emt 0:01:03]} 73. e8=Q {[%emt 0:00:00]} Nd6 {[%emt 0:01:02]} 74. d8=Q+ {[%emt 0:00:00]} Nxe8 {[%emt 0:00:41]} 75. Qxe8+ {[%emt 0:00:00]} 1-0

[Event "Liberia Championship 2023"]
[Site "Monrovia"]
[Date "2024.01.17"]
[Round "4.3"]
[White "James, Tondo"]
[Black "Thomas, Saah"]
[Result "0-1"]
[ECO "B30"]
[WhiteElo "1837"]
[BlackElo "1889"]
[Annotator "NA RC"]
[PlyCount "56"]
[EventDate "2024.01.16"]
[EventType "swiss"]
[EventCountry "LBR"]
[SourceTitle "playchess.com"]
[Source "ChessBase"]
[SourceQuality "1"]
[TimeControl "40/5400+30:1800+30"]

1. e4 {[%emt 1:31:00]} c5 {[%emt 0:23:14]} 2. Nf3 {[%emt 0:00:00]} Nc6 {[%emt 0:00:11]} 3. Bb5 {[%emt 0:00:00]} Qb6 {[%emt 0:01:29]} 4. Bxc6 {[%emt 0:00:00]} Qxc6 {[%emt 0:00:09]} 5. O-O {[%emt 0:00:00]} Qxe4 {[%emt 0:00:10]} 6. d4 {[%emt 0:00:00]} cxd4 {[%emt 0:00:26]} 7. Re1 {[%emt 0:00:00]} Qg6 {[%emt 0:01:18]} 8. Ne5 {[%emt 0:00:00]} Qb6 {[%emt 0:00:45]} 9. Na3 {[%emt 0:00:00]} d5 {[%emt 0:00:29]} 10. c3 {[%emt 0:00:00]} e6 {[%emt 0:01:01]} 11. Qa4+ {[%emt 0:00:00]} Ke7 {[%emt 0:00:29]} 12. Nb5 {[%emt 0:00:00]} f6 {[%emt 0:01:41]} 13. Nf3 {[%emt 0:00:00]} Bd7 {[%emt 0:00:17]} 14. Nfxd4 {[%emt 0:00:00]} e5 {[%emt 0:00:33]} 15. Be3 {[%emt 0:00:00]} Kf7 {[%emt 0:01:16]} 16. Qb3 {[%emt 0:00:00]} exd4 {[%emt 0:00:14]} 17. Qxd5+ {[%emt 0:00:00]} Be6 {[%emt 0:00:03]} 18. Qe4 {[%emt 0:00:00]} Qxb5 {[%emt 0:00:44]} 19. Bxd4 {[%emt 0:00:00]} Qc6 {[%emt 0:00:10]} 20. Qh4 {[%emt 0:00:00]} Ne7 {[%emt 0:00:24]} 21. Qh5+ {[%emt 0:00:00]} g6 {[%emt 0:00:20]} 22. Qe2 {[%emt 0:00:00]} Bg7 {[%emt 0:00:19]} 23. Rad1 {[%emt 0:00:00]} Rhe8 {[%emt 0:00:12]} 24. b3 {[%emt 0:00:00]} Nf5 {[%emt 0:00:19]} 25. Rd3 {[%emt 0:00:00]} Bc4 {[%emt 0:00:24]} 26. Be3 {[%emt 0:00:00]} Nxe3 {[%emt 0:00:07]} 27. fxe3 {[%emt 0:00:00]} Bxd3 {[%emt 0:00:02]} 28. Qxd3 {[%emt 0:00:00]} Rad8 {[%emt 0:00:15]} 0-1

[Event "Liberia Championship 2023"]
[Site "Monrovia"]
[Date "2024.01.17"]
[Round "4.4"]
[White "Joel O. Ebiekuta"]
[Black "Daniel Kolliemelen"]
[Result "0-1"]
[ECO "D00"]
[WhiteElo "1875"]
[BlackElo "1809"]
[Annotator "NA RC"]
[PlyCount "113"]
[EventDate "2024.01.16"]
[EventType "swiss"]
[EventCountry "LBR"]
[SourceTitle "playchess.com"]
[Source "ChessBase"]
[SourceQuality "1"]
[TimeControl "40/5400+30:1800+30"]

1. d4 {[%emt 0:20:00]} d5 {[%emt 0:00:21]} 2. Bf4 {[%emt 0:00:15]} e6 {[%emt 0:00:26]} 3. e3 {[%emt 0:00:03]} Bd6 {[%emt 0:00:26]} 4. Bg3 {[%emt 0:00:01]} f5 {[%emt 0:00:59]} 5. c4 {[%emt 0:00:10]} c6 {[%emt 0:00:35]} 6. Nc3 {[%emt 0:00:04]} a6 {[%emt 0:00:23]} 7. Nf3 {[%emt 0:00:02]} Nf6 {[%emt 0:00:09]} 8. Ne5 {[%emt 0:00:56]} O-O {[%emt 1:31:11]} 9. Bd3 {[%emt 1:13:29]} Bc7 {[%emt 0:00:00]} 10. O-O {[%emt 0:00:00]} Nbd7 {[%emt 0:00:00]} 11. f4 {[%emt 0:00:00]} Nxe5 {[%emt 0:00:00]} 12. fxe5 {[%emt 0:00:00]} Ng4 {[%emt 0:00:00]} 13. Rf3 {[%emt 0:00:00]} b5 {[%emt 0:00:00]} 14. c5 {[%emt 0:02:30]} a5 {[%emt 0:00:00]} 15. Qe2 {[%emt 0:00:00]} Bd7 {[%emt 0:00:00]} 16. Raf1 {[%emt 0:00:00]} Qe7 {[%emt 0:00:00]} 17. h3 {[%emt 0:00:00]} Nh6 {[%emt 0:00:00]} 18. Bf4 {[%emt 0:00:00]} Nf7 {[%emt 0:00:00]} 19. g4 {[%emt 0:00:00]} Ng5 {[%emt 0:00:00]} 20. Bxg5 {[%emt 0:00:00]} Qxg5 {[%emt 0:00:00]} 21. Kh2 {[%emt 0:00:00]} g6 {[%emt 0:00:00]} 22. gxf5 {[%emt 0:00:00]} exf5 {[%emt 0:00:00]} 23. Rf4 {[%emt 0:00:00]} Bd8 {[%emt 0:07:30]} 24. Rg1 {[%emt 0:05:00]} Qh6 {[%emt 0:00:30]} 25. Qg2 {[%emt 0:00:30]} Kh8 {[%emt 0:00:00]} 26. Nxd5 {[%emt 0:00:00]} cxd5 {[%emt 0:00:00]} 27. Qxd5 {[%emt 0:00:00]} Bg5 {[%emt 0:00:00]} 28. Rxg5 {[%emt 0:00:00]} Qxg5 {[%emt 0:00:00]} 29. Qxd7 {[%emt 0:00:00]} Qh5 {[%emt 0:00:00]} 30. Rf1 {[%emt 0:00:00]} Qh6 {[%emt 0:00:00]} 31. Rf3 {[%emt 0:00:00]} f4 {[%emt 0:00:00]} 32. Qg4 {[%emt 0:00:00]} fxe3 {[%emt 0:00:00]} 33. Be2 {[%emt 0:00:00]} Rxf3 {[%emt 0:00:00]} 34. Bxf3 {[%emt 0:00:00]} Rf8 {[%emt 0:00:00]} 35. c6 {[%emt 0:00:00]} e2 {[%emt 0:00:00]} 36. Bxe2 {[%emt 0:00:00]} Qe3 {[%emt 0:00:00]} 37. Kh1 {[%emt 0:00:00]} Rf2 {[%emt 0:00:00]} 38. c7 {[%emt 0:00:00]} Qc1+ {[%emt 0:00:00]} 39. Bd1 {[%emt 0:00:00]} Qxc7 {[%emt 0:00:00]} 40. Kg1 {[%emt 0:00:00]} Rxb2 {[%emt 0:05:07]} 41. Qf3 {[%emt 0:00:00]} Qe7 {[%emt 0:12:54]} 42. d5 {[%emt 0:00:00]} Kg7 {[%emt 0:02:06]} 43. Qe3 {[%emt 0:00:00]} h6 {[%emt 0:00:00]} 44. Kf1 {[%emt 0:00:00]} Rxa2 {[%emt 0:00:00]} 45. d6 {[%emt 0:00:00]} Qf7+ {[%emt 0:20:23]} 46. Ke1 {[%emt 0:40:30]} Qc4 {[%emt 0:00:00]} 47. Qa7+ {[%emt 0:00:00]} Kg8 {[%emt 0:01:00]} 48. Qb8+ {[%emt 0:01:00]} Kf7 {[%emt 0:00:30]} 49. Qc7+ {[%emt 0:00:30]} Kf8 {[%emt 0:00:00]} 50. Qxc4 {[%emt 0:00:00]} bxc4 {[%emt 0:00:00]} 51. e6 {[%emt 0:00:00]} Ra1 {[%emt 0:00:00]} 52. e7+ {[%emt 0:00:00]} Ke8 {[%emt 0:02:00]} 53. Kd2 {[%emt 0:02:00]} Rxd1+ {[%emt 0:00:00]} 54. Kxd1 {[%emt 0:00:00]} a4 {[%emt 0:00:00]} 55. Kc2 {[%emt 0:00:00]} a3 {[%emt 0:00:00]} 56. Kc3 {[%emt 0:00:00]} g5 {[%emt 0:00:00]} 57. Kd4 {[%emt 0:02:00]} 0-1

[Event "Liberia Championship 2023"]
[Site "Monrovia"]
[Date "2024.01.17"]
[Round "4.5"]
[White "Foday W. Kondoh"]
[Black "Bobby Ballah"]
[Result "0-1"]
[ECO "B50"]
[WhiteElo "1785"]
[BlackElo "1913"]
[Annotator "NA RC"]
[PlyCount "72"]
[EventDate "2024.01.16"]
[EventType "swiss"]
[EventCountry "LBR"]
[SourceTitle "playchess.com"]
[Source "ChessBase"]
[SourceQuality "1"]
[TimeControl "40/5400+30:1800+30"]

1. e4 {[%emt 0:00:05]} c5 {[%emt 0:00:15]} 2. Nf3 {[%emt 0:00:20]} Nc6 {[%emt 0:00:06]} 3. b3 {[%emt 0:01:31]} d6 {[%emt 0:05:29]} 4. Bb2 {[%emt 0:01:08]} Nf6 {[%emt 0:01:18]} 5. e5 {[%emt 0:02:56]} dxe5 {[%emt 0:02:53]} 6. Nxe5 {[%emt 0:00:24]} Nxe5 {[%emt 0:00:33]} 7. Bxe5 {[%emt 0:00:12]} e6 {[%emt 0:01:15]} 8. Bb5+ {[%emt 0:01:08]} Bd7 {[%emt 0:00:17]} 9. Bxf6 {[%emt 0:02:14]} gxf6 {[%emt 0:00:09]} 10. Qe2 {[%emt 0:02:16]} Bg7 {[%emt 0:03:59]} 11. Nc3 {[%emt 0:01:21]} O-O {[%emt 0:03:23]} 12. Bxd7 {[%emt 0:01:39]} Qxd7 {[%emt 0:00:06]} 13. Rd1 {[%emt 0:00:49]} f5 {[%emt 0:02:55]} 14. O-O {[%emt 0:00:59]} Kh8 {[%emt 0:01:50]} 15. Qc4 {[%emt 0:00:58]} b6 {[%emt 0:03:09]} 16. Ne2 {[%emt 0:01:12]} Rad8 {[%emt 0:01:03]} 17. Qh4 {[%emt 0:04:00]} Rg8 {[%emt 0:02:23]} 18. Kh1 {[%emt 0:10:20]} Qc6 {[%emt 0:06:14]} 19. f3 {[%emt 0:02:36]} Be5 {[%emt 0:07:31]} 20. c3 {[%emt 0:09:18]} Rd3 {[%emt 0:05:51]} 21. Nc1 {[%emt 0:05:54]} Rd7 {[%emt 0:01:34]} 22. Rfe1 {[%emt 0:00:56]} Qd6 {[%emt 0:12:31]} 23. Ne2 {[%emt 0:03:55]} Rg6 {[%emt 0:01:16]} 24. g3 {[%emt 0:15:51]} Qc6 {[%emt 0:11:38]} 25. Kg2 {[%emt 0:07:05]} Rd3 {[%emt 0:00:08]} 26. Ng1 {[%emt 0:00:30]} Qd6 {[%emt 0:00:44]} 27. Re2 {[%emt 0:04:26]} Bxc3 {[%emt 0:01:03]} 28. Qa4 {[%emt 0:09:59]} Be5 {[%emt 0:03:18]} 29. Qxa7 {[%emt 0:06:13]} Bxg3 {[%emt 0:01:38]} 30. Qxf7 {[%emt 0:03:07]} Bxh2+ {[%emt 0:07:58]} 31. Kh1 {[%emt 0:00:17]} Rh6 {[%emt 0:01:38]} 32. Qe8+ {[%emt 0:00:11]} Kg7 {[%emt 0:00:13]} 33. Nh3 {[%emt 0:01:36]} Rxh3 {[%emt 0:01:20]} 34. Rg2+ {[%emt 0:00:35]} Bg3+ {[%emt 0:01:52]} 35. Kg1 {[%emt 0:00:15]} Qd4+ {[%emt 0:00:19]} 36. Kf1 {[%emt 0:00:02]} Rxf3+ {[%emt 0:00:36]} 0-1